fUSD/lending_fUSD_20240727
["ID","MTS","AMOUNT","RATE_DAILY","PERIOD"]
[333349964,1722066638713,-500.0,0.00010989,2]
[333349965,1722066638724,-500.0,0.00010989,2]
[333349966,1722066638736,-500.0,0.00010989,2]
[333349967,1722066638746,-500.0,0.00010989,2]
[333349968,1722066638757,-500.0,0.00010989,2]
[333349969,1722066638769,-500.0,0.00010989,2]
[333349970,1722066638779,-500.0,0.00010989,2]
[333349971,1722066638793,-500.0,0.00010989,2]
[333349972,1722066638804,-500.0,0.00010989,2]
[333349973,1722066638815,-500.0,0.00010989,2]
[333349974,1722066638826,-500.0,0.00010989,2]
[333349975,1722066638837,-500.0,0.00010989,2]
[333349977,1722066638848,-473.84972055,0.00010989,2]
[333349978,1722066638862,-26.15027945,0.00010989,2]
[333349979,1722066638873,-405.84972455,0.00010989,2]
[333349980,1722066638887,-94.15027545,0.00010989,2]
[333349981,1722066638898,-500.0,0.00010989,2]
[333349982,1722066638910,-500.0,0.00010989,2]
[333349983,1722066638921,-500.0,0.00010989,2]
[333349984,1722066638933,-500.0,0.00010989,2]
[333349985,1722066638947,-500.0,0.00010989,2]
[333349986,1722066638960,-500.0,0.00010989,2]
[333349987,1722066638971,-327.89083097,0.00010989,2]
[333349988,1722066638987,-172.10916903,0.00010989,2]
[333349989,1722066638998,-500.0,0.00010989,2]
[333349990,1722066639011,-39.61965231,0.00010989,2]
[333349991,1722066639023,-455.85444,0.00010989,2]
[333349992,1722066639039,-4.52590769,0.00010989,2]
[333349993,1722066639051,-336.0199611,0.00010989,2]
[333349994,1722066639064,-500.0,0.00010989,2]
[333349995,1722066639076,-500.0,0.00010989,2]
[333349996,1722066639088,-500.0,0.0001099,2]
[333349997,1722066639099,-500.0,0.0001099,2]
[333349998,1722066639110,-500.0,0.0001099,2]
[333349999,1722066639121,-273.16,0.0001099,2]
[333350000,1722066639132,-500.0,0.0001099,2]
[333350001,1722066639143,-500.0,0.0001099,2]
[333350002,1722066639153,-500.0,0.0001099,2]
[333350003,1722066639165,-500.0,0.0001099,2]
[333350004,1722066639175,-500.0,0.0001099,2]
[333350005,1722066639186,-158.94,0.0001099,2]
[333350006,1722066639197,-555.3,0.0001099,2]
[333350007,1722066639207,-500.0,0.0001099,2]
[333350008,1722066639218,-500.0,0.0001099,2]
[333350009,1722066639229,-500.0,0.0001099,2]
[333350010,1722066639239,-500.0,0.0001099,2]
[333350011,1722066639249,-500.0,0.0001099,2]
[333350012,1722066639259,-500.0,0.0001099,2]
[333350013,1722066639268,-380.59,0.0001099,2]
[333350014,1722066639278,-500.0,0.0001099,2]
[333350015,1722066639291,-500.0,0.0001099,2]
[333350016,1722066639302,-500.0,0.0001099,2]
[333350017,1722066639312,-534.89,0.0001099,2]
[333350018,1722066639323,-500.0,0.0001099,2]
[333350019,1722066639333,-500.0,0.0001099,2]
[333350020,1722066639344,-152.7,0.0001099,2]
[333350021,1722066639355,-500.0,0.0001099,2]
[333350022,1722066639366,-591.87,0.0001099,2]
[333350023,1722066639377,-216.08,0.0001099,2]
[333350024,1722066639388,-500.0,0.0001099,2]
[333350025,1722066639399,-500.0,0.0001099,2]
[333350026,1722066639409,-500.0,0.0001099,2]
[333350027,1722066639420,-500.0,0.0001099,2]
[333350028,1722066639431,-500.0,0.0001099,2]
[333350029,1722066639442,-500.0,0.0001099,2]
[333350030,1722066639453,-493.12,0.0001099,2]
[333350031,1722066639464,-500.0,0.0001099,2]
[333350033,1722066639475,-500.0,0.0001099,2]
[333350035,1722066639487,-500.0,0.0001099,2]
[333350037,1722066639497,-500.0,0.0001099,2]
[333350040,1722066639509,-500.0,0.0001099,2]
[333350042,1722066639519,-500.0,0.0001099,2]
[333350044,1722066639531,-500.0,0.0001099,2]
[333350046,1722066639544,-500.0,0.0001099,2]
[333350049,1722066639555,-500.0,0.0001099,2]
[333350051,1722066639566,-500.0,0.0001099,2]
[333350053,1722066639578,-500.0,0.0001099,2]
[333350055,1722066639589,-500.0,0.0001099,2]
[333350057,1722066639599,-500.0,0.0001099,2]
[333350060,1722066639611,-500.0,0.0001099,2]
[333350062,1722066639622,-500.0,0.0001099,2]
[333350064,1722066639633,-500.0,0.0001099,2]
[333350066,1722066639644,-500.0,0.0001099,2]
[333350068,1722066639654,-500.0,0.0001099,2]
[333350070,1722066639665,-500.0,0.0001099,2]
[333350072,1722066639676,-500.0,0.0001099,2]
[333350074,1722066639687,-500.0,0.0001099,2]
[333350075,1722066639697,-500.0,0.0001099,2]
[333350076,1722066639707,-500.0,0.0001099,2]
[333350077,1722066639718,-500.0,0.0001099,2]
[333350078,1722066639730,-500.0,0.0001099,2]
[333350079,1722066639740,-380.06,0.0001099,2]
[333350080,1722066639751,-500.0,0.0001099,2]
[333350081,1722066639761,-500.0,0.0001099,2]
[333350082,1722066639772,-500.0,0.0001099,2]
[333350083,1722066639783,-500.0,0.0001099,2]
[333350084,1722066639794,-500.0,0.0001099,2]
[333350085,1722066639804,-500.0,0.0001099,2]
[333350086,1722066639814,-500.0,0.0001099,2]
[333350087,1722066639825,-500.0,0.0001099,2]
[333350088,1722066639835,-500.0,0.0001099,2]
[333350089,1722066639847,-500.0,0.0001099,2]
[333350090,1722066639857,-646.52,0.0001099,2]
[333350091,1722066639867,-237.48,0.0001099,2]
[333350092,1722066639877,-300.4114864,0.00010991,2]
[333350093,1722066639888,-500.0,0.00010991,2]
[333350094,1722066639899,-500.0,0.00010991,2]
[333350095,1722066639909,-373.6,0.00010991,2]
[333350096,1722066639919,-500.0,0.00010991,2]
[333350097,1722066639930,-500.0,0.00010991,2]
[333350098,1722066639944,-500.0,0.00010991,2]
[333350099,1722066639954,-500.0,0.00010991,2]
[333350100,1722066639965,-500.0,0.00010991,2]
[333350101,1722066639975,-500.0,0.00010991,2]
[333350102,1722066639985,-167.37,0.00010991,2]
[333350103,1722066639995,-500.0,0.00010991,2]
[333350104,1722066640005,-500.0,0.00010991,2]
[333350105,1722066640015,-500.0,0.00010991,2]
[333350106,1722066640025,-500.0,0.00010991,2]
[333350107,1722066640036,-500.0,0.00010991,2]
[333350108,1722066640046,-500.0,0.00010991,2]
[333350109,1722066640056,-171.68123481,0.00010991,2]
[333350116,1722066640697,-328.17229292,0.00010991,2]
[333350117,1722066640709,-500.0,0.00010991,2]
[333350118,1722066640719,-500.0,0.00010991,2]
[333350119,1722066640728,-500.0,0.00010991,2]
[333350120,1722066640737,-500.0,0.00010991,2]
[333350121,1722066640747,-500.0,0.00010991,2]
[333350122,1722066640756,-483.11107566,0.00010991,2]
[333350123,1722066640765,-422.40086489,0.00010991,2]
[333350124,1722066640776,-77.59913511,0.00010991,2]
[333350125,1722066640786,-500.0,0.00010991,2]
[333350126,1722066640795,-456.10086489,0.00010991,2]
[333350127,1722066640824,-43.89913511,0.00010991,2]
[333350128,1722066640833,-500.0,0.00010991,2]
[333350129,1722066640843,-256.04941341,0.00010991,2]
[333350130,1722066640854,-243.95058659,0.00010991,2]
[333350131,1722066640863,-500.0,0.00010991,2]
[333350132,1722066640872,-648.34,0.00010991,2]
[333350133,1722066640882,-273.88,0.00010991,2]
[333350135,1722066640891,-500.0,0.00010991,2]
[333350137,1722066640900,-322.15126219,0.00010991,2]
[333350139,1722066640911,-177.84873781,0.00010991,2]
[333350141,1722066640921,-159.17039875,0.00010991,2]
[333350144,1722066640938,-340.82960125,0.00010991,2]
[333350146,1722066640948,-601.08,0.00010991,2]
[333350148,1722066640957,-559.45252592,0.00010991,2]
[333350149,1722066640966,-500.0,0.00010991,2]
[333350151,1722066640976,-500.0,0.00010991,2]
[333350154,1722066640985,-500.0,0.00010991,2]
[333350156,1722066640994,-500.0,0.00010991,2]
[333350157,1722066641003,-500.0,0.00010991,2]
[333350159,1722066641013,-474.15816132,0.00010991,2]
[333350162,1722066641025,-25.84183868,0.00010991,2]
[333350164,1722066641035,-273.84816142,0.00010991,2]
[333350167,1722066641054,-154.19183858,0.00010991,2]
[333350169,1722066641063,-180.89766987,0.00010991,2]
[333350171,1722066641074,-276.52,0.00010991,2]
[333350315,1722066642444,-500.0,0.00010988,2]
[333350317,1722066642454,-42.58233013,0.00010991,2]
[333350319,1722066642463,-500.0,0.00010991,2]
[333350321,1722066642472,-157.41766987,0.00010991,2]
[333350323,1722066642485,-342.58233013,0.00010991,2]
[333350325,1722066642494,-84.47966987,0.00010991,2]
[333350327,1722066642506,-415.52033013,0.00010991,2]
[333350329,1722066642515,-500.0,0.00010991,2]
[333350331,1722066642527,-120.15539481,0.00010991,2]
[333350334,1722066642544,-379.84460519,0.00010991,2]
[333350336,1722066642553,-19.24462593,0.00010991,2]
[333350339,1722066642569,-480.75537407,0.00010991,2]
[333350341,1722066642578,-500.0,0.00010991,2]
[333350343,1722066642587,-500.0,0.00010991,2]
[333350345,1722066642596,-500.0,0.00010991,2]
[333350347,1722066642605,-500.0,0.00010991,2]
[333350349,1722066642614,-500.0,0.00010991,2]
[333350351,1722066642623,-500.0,0.00010991,2]
[333350353,1722066642633,-500.0,0.00010991,2]
[333350355,1722066642642,-500.0,0.00010991,2]
[333350357,1722066642651,-500.0,0.00010991,2]
[333350359,1722066642660,-500.0,0.00010991,2]
[333350361,1722066642670,-500.0,0.00010991,2]
[333350363,1722066642680,-500.0,0.00010991,2]
[333350365,1722066642689,-466.12,0.00010991,2]
[333350367,1722066642698,-500.0,0.00010991,2]
[333350369,1722066642707,-620.3,0.00010991,2]
[333350371,1722066642716,-500.0,0.00010991,2]
[333350373,1722066642725,-500.0,0.00010991,2]
[333350375,1722066642734,-500.0,0.00010991,2]
[333350377,1722066642743,-500.0,0.00010991,2]
[333350379,1722066642752,-500.0,0.00010991,2]
[333350381,1722066642761,-500.0,0.00010991,2]
[333350383,1722066642770,-500.0,0.00010991,2]
[333350385,1722066642780,-500.0,0.00010991,2]
[333350387,1722066642792,-500.0,0.00010991,2]
[333350389,1722066642800,-500.0,0.00010991,2]
[333350391,1722066642810,-500.0,0.00010991,2]
[333350393,1722066642818,-500.0,0.00010991,2]
[333350395,1722066642827,-500.0,0.00010991,2]
[333350396,1722066642836,-500.0,0.00010991,2]
[333350398,1722066642845,-500.0,0.00010991,2]
[333350400,1722066642854,-500.0,0.00010991,2]
[333350402,1722066642863,-500.0,0.00010991,2]
[333350404,1722066642872,-469.58,0.00010991,2]
[333350406,1722066642881,-500.0,0.00010991,2]
[333350408,1722066642892,-500.0,0.00010991,2]
[333350410,1722066642902,-500.0,0.00010991,2]
[333350412,1722066642911,-6003.1118591,0.00010991,2]
[333350413,1722066642921,-45701.78169466,0.00010991,2]
[333350414,1722066642935,-5674.61287397,0.00010991,2]
[333350415,1722066642953,-301.11415239,0.00010991,2]
[333350416,1722066642965,-730.4022,0.00010991,2]
[333350417,1722066642977,-2705.41596495,0.00010991,2]
[333350418,1722066642990,-9198.23233409,0.00010991,2]
[333350419,1722066643002,-1662.12038026,0.00010991,2]
[333350422,1722066643106,-409.15439696,0.00010991,2]
[333350423,1722066643119,-3742.03740402,0.00010991,2]
[333350424,1722066643128,-3000.0,0.00010991,2]
[333350425,1722066643138,-2260.3229949,0.00010991,2]
[333350426,1722066643147,-3474.1194106,0.00010991,2]
[333350427,1722066643157,-4977.1504738,0.00010992,2]
[333350428,1722066643166,-3951.1890884,0.00010992,2]
[333350429,1722066643176,-2925.2277031,0.00010992,2]
[333350430,1722066643185,-1899.2663178,0.00010992,2]
[333350431,1722066643195,-873.3049325,0.00010992,2]
[333350433,1722066643204,-186.76599912,0.00010992,2]
[333350435,1722066643215,-499.9996419,0.00010992,2]
[333350437,1722066643226,-3527.75465539,0.00010992,2]
[333350438,1722066643239,-5427.19204843,0.00010992,2]
[333350439,1722066643251,-1748.56626615,0.00010992,2]
[333350440,1722066643263,-1120.0285415,0.00010992,2]
[333350441,1722066643274,-45629.87832321,0.00010992,2]
[333350442,1722066643285,-4935.32196367,0.00010992,2]
[333350443,1722066643296,-3781.10896822,0.00010992,2]
[333350444,1722066643308,-17110.84375,0.00010992,2]
[333350446,1722066643319,-1206.83348292,0.00010992,2]
[333350448,1722066643331,-3210.65,0.00010992,2]
[333350451,1722066643343,-861.50000005,0.00010992,2]
[333350453,1722066643355,-660.81917,0.00010992,2]
[333350454,1722066643366,-14388.42221514,0.00010992,2]
[333350455,1722066643376,-34170.8136244,0.00010992,2]
[333350456,1722066643386,-22186.1276988,0.00010992,2]
[333350457,1722066643396,-10201.4417731,0.00010992,2]
[333350458,1722066643405,-1874.0226617,0.00010992,2]
[333350459,1722066643414,-1487.7223286,0.00010992,2]
[333350460,1722066643423,-1101.4219954,0.00010992,2]
[333350461,1722066643432,-715.1216623,0.00010992,2]
[333350462,1722066643441,-328.8213291,0.00010992,2]
[333350463,1722066643451,-2880.3752914,0.00010992,2]
[333350464,1722066643460,-2286.6311722,0.00010992,2]
[333350465,1722066643469,-1692.887053,0.00010992,2]
[333350466,1722066643478,-1099.1429338,0.00010992,2]
[333350467,1722066643487,-505.3988146,0.00010992,2]
[333350468,1722066643497,-210.45610074,0.00010992,2]
[333350469,1722066643506,-500.0,0.00010995,2]
[333350470,1722066643515,-500.0,0.00010995,2]
[333350471,1722066643524,-500.0,0.00010995,2]
[333350472,1722066643713,-500.0,0.00010995,2]
[333350473,1722066643723,-500.0,0.00010995,2]
[333350474,1722066643732,-500.0,0.00010995,2]
[333350475,1722066643742,-500.0,0.00010995,2]
[333350476,1722066643751,-500.0,0.00010995,2]
[333350477,1722066643760,-500.0,0.00010995,2]
[333350478,1722066643770,-506.73,0.00010995,2]
[333350479,1722066643779,-500.0,0.00010995,2]
[333350480,1722066643791,-500.0,0.00010995,2]
[333350481,1722066643800,-647.29,0.00010995,2]
[333350482,1722066643810,-578.3,0.00010995,2]
[333350483,1722066643819,-500.0,0.00010995,2]
[333350484,1722066643829,-500.0,0.00010995,2]
[333350485,1722066643838,-500.0,0.00010995,2]
[333350486,1722066643847,-604.66,0.00010995,2]
[333350487,1722066643857,-500.0,0.00010995,2]
[333350488,1722066643866,-500.0,0.00010995,2]
[333350489,1722066643875,-500.0,0.00010995,2]
[333350490,1722066643885,-500.0,0.00010995,2]
[333350491,1722066643894,-500.0,0.00010995,2]
[333350492,1722066643904,-500.0,0.00010995,2]
[333350493,1722066643914,-500.0,0.00010995,2]
[333350494,1722066643924,-500.0,0.00010995,2]
[333350496,1722066643935,-500.0,0.00010995,2]
[333350497,1722066643945,-500.0,0.00010995,2]
[333350498,1722066643955,-566.88,0.00010995,2]
[333350499,1722066643965,-666.58,0.00010995,2]
[333350500,1722066643974,-500.0,0.00010995,2]
[333350501,1722066643984,-500.0,0.00010995,2]
[333350502,1722066643994,-500.0,0.00010995,2]
[333350503,1722066644003,-500.0,0.00010995,2]
[333350504,1722066644012,-500.0,0.00010995,2]
[333350505,1722066644022,-500.0,0.00010995,2]
[333350506,1722066644031,-500.0,0.00010995,2]
[333350507,1722066644045,-500.0,0.00010995,2]
[333350508,1722066644054,-500.0,0.00010995,2]
[333350509,1722066644063,-500.0,0.00010995,2]
[333350510,1722066644073,-500.0,0.00010995,2]
[333350511,1722066644083,-500.0,0.00010995,2]
[333350512,1722066644093,-500.0,0.00010995,2]
[333350513,1722066644103,-500.0,0.00010995,2]
[333350514,1722066644112,-500.0,0.00010995,2]
[333350515,1722066644122,-500.0,0.00010995,2]
[333350516,1722066644131,-500.0,0.00010995,2]
[333350517,1722066644140,-500.0,0.00010995,2]
[333350518,1722066644150,-500.0,0.00010995,2]
[333350519,1722066644160,-500.0,0.00010995,2]
[333350520,1722066644169,-500.0,0.00010995,2]
[333350521,1722066644178,-156.08506473,0.00010995,2]
[333350522,1722066644188,-500.0,0.00010995,2]
[333350523,1722066644197,-500.0,0.00010995,2]
[333350524,1722066644208,-500.0,0.00010996,2]
[333350525,1722066644217,-500.0,0.00010997,2]
[333350526,1722066644228,-500.0,0.00010997,2]
[333350527,1722066644237,-448.0662042,0.00010997,2]
[333350528,1722066644247,-500.0,0.00010997,2]
[333350529,1722066644257,-500.0,0.00010997,2]
[333350530,1722066644266,-164.26,0.00010997,2]
[333350531,1722066644276,-500.0,0.00010997,2]
[333350532,1722066644285,-500.0,0.00010997,2]
[333350533,1722066644294,-640.75,0.00010997,2]
[333350534,1722066644304,-311.46,0.00010997,2]
[333350535,1722066644314,-175.46,0.00010997,2]
[333350536,1722066644323,-666.58,0.00010997,2]
[333350537,1722066644333,-213.47,0.00010997,2]
[333350538,1722066644342,-500.0,0.00010997,2]
[333350539,1722066644351,-186.13853616,0.00010997,2]
[333350540,1722066644361,-500.0,0.00010997,2]
[333350541,1722066644370,-500.0,0.00010997,2]
[333350542,1722066644379,-500.0,0.00010997,2]
[333350543,1722066644388,-500.0,0.00010997,2]
[333350544,1722066644397,-500.0,0.00010997,2]
[333350545,1722066644407,-500.0,0.00010997,2]
[333350546,1722066644416,-500.0,0.00010997,2]
[333350547,1722066644425,-500.0,0.00010997,2]
[333350548,1722066644435,-370.16979774,0.00010997,2]
[333350549,1722066644444,-500.0,0.00010997,2]
[333350550,1722066644454,-500.0,0.00010997,2]
[333350551,1722066644464,-500.0,0.00010997,2]
[333350552,1722066644474,-500.0,0.00010997,2]
[333350553,1722066644483,-505.42,0.00010997,2]
[333350554,1722066644493,-500.0,0.00010997,2]
[333350555,1722066644502,-500.0,0.00010997,2]
[333350556,1722066644511,-500.0,0.00010997,2]
[333350557,1722066644521,-500.0,0.00010997,2]
[333350558,1722066644531,-186.44,0.00010997,2]
[333350559,1722066644541,-500.0,0.00010997,2]
[333350560,1722066644551,-367.5,0.00010997,2]
[333350561,1722066644560,-500.0,0.00010997,2]
[333350562,1722066644570,-500.0,0.00010997,2]
[333350563,1722066644580,-500.0,0.00010997,2]
[333350564,1722066644589,-200.22,0.00010997,2]
[333350565,1722066644599,-452.71,0.00010997,2]
[333350566,1722066644608,-500.0,0.00010997,2]
[333350567,1722066644618,-186.91363268,0.00010997,2]
[333350568,1722066644627,-500.0,0.00010997,2]
[333350569,1722066644636,-500.0,0.00010997,2]
[333350570,1722066644646,-500.0,0.00010997,2]
[333350571,1722066644655,-500.0,0.00010997,2]
[333350572,1722066644664,-500.0,0.00010997,2]
[333350573,1722066644673,-500.0,0.00010997,2]
[333350574,1722066644683,-500.0,0.00010997,2]
[333350575,1722066644692,-626.9,0.00010997,2]
[333350576,1722066644701,-500.0,0.00010997,2]
[333350577,1722066644711,-383.74,0.00010997,2]
[333350578,1722066644720,-500.0,0.00010997,2]
[333350579,1722066644730,-500.0,0.00010997,2]
[333350580,1722066644739,-500.0,0.00010997,2]
[333350581,1722066644749,-500.0,0.00010997,2]
[333350582,1722066644758,-388.32,0.00010997,2]
[333350583,1722066644768,-206.76,0.00010997,2]
[333350584,1722066644777,-210.45610074,0.00010997,2]
[333350585,1722066644789,-1996.96171603,0.00010998,2]
[333350586,1722066644798,-2339.79,0.00010998,2]
[333350587,1722066644808,-2339.79,0.00010998,2]
[333350588,1722066644817,-2339.79,0.00010998,2]
[333350589,1722066644827,-2339.79,0.00010998,2]
[333350590,1722066644837,-2339.79,0.00010998,2]
[333350591,1722066644846,-2339.80996081,0.00010998,2]
[333350592,1722066644855,-2943.1,0.00010998,2]
[333350593,1722066644865,-2943.1,0.00010998,2]
[333350594,1722066644876,-2943.1,0.00010998,2]
[333350595,1722066644885,-2943.1,0.00010998,2]
[333350596,1722066644895,-2943.1,0.00010998,2]
[333350597,1722066644904,-2943.1,0.00010998,2]
[333350598,1722066644914,-2943.1,0.00010998,2]
[333350599,1722066644925,-2943.1,0.00010998,2]
[333350600,1722066644938,-2943.22269287,0.00010998,2]
[333350601,1722066644947,-2091.19,0.00010998,2]
[333350602,1722066644957,-2091.19,0.00010998,2]
[333350603,1722066644966,-2091.19,0.00010998,2]
[333350604,1722066644977,-2091.19,0.00010998,2]
[333350605,1722066644987,-2091.19,0.00010998,2]
[333350606,1722066644996,-2091.19,0.00010998,2]
[333350607,1722066645007,-2091.19,0.00010998,2]
[333350608,1722066645017,-2091.19,0.00010998,2]
[333350609,1722066645027,-2091.26551589,0.00010998,2]
[333350610,1722066645037,-2840.32,0.00010998,2]
[333350611,1722066645049,-2840.32,0.00010998,2]
[333350612,1722066645059,-2840.32,0.00010998,2]
[333350613,1722066645069,-2840.32,0.00010998,2]
[333350614,1722066645079,-2840.32,0.00010998,2]
[333350615,1722066645089,-2840.32,0.00010998,2]
[333350616,1722066645099,-2840.32,0.00010998,2]
[333350617,1722066645108,-2840.32,0.00010998,2]
[333350618,1722066645118,-1958.90806857,0.00010998,2]
[333350619,1722066645136,-881.50193143,0.00010998,2]
[333350620,1722066645146,-896.17,0.00010998,2]
[333350621,1722066645155,-896.17,0.00010998,2]
[333350622,1722066645165,-896.17,0.00010998,2]
[333350623,1722066645174,-896.17,0.00010998,2]
[333350624,1722066645183,-896.17,0.00010998,2]
[333350625,1722066645193,-896.17,0.00010998,2]
[333350626,1722066645204,-896.17,0.00010998,2]
[333350627,1722066645214,-896.17,0.00010998,2]
[333350628,1722066645224,-896.25013243,0.00010998,2]
[333350629,1722066645233,-3368.45,0.00010998,2]
[333350630,1722066645242,-3368.45,0.00010998,2]
[333350631,1722066645251,-3368.45,0.00010998,2]
[333350632,1722066645261,-3368.45,0.00010998,2]
[333350633,1722066645270,-3368.45,0.00010998,2]
[333350634,1722066645279,-3368.45,0.00010998,2]
[333350635,1722066645289,-3368.45,0.00010998,2]
[333350636,1722066645298,-3368.45,0.00010998,2]
[333350637,1722066645307,-3368.667322,0.00010998,2]
[333350638,1722066645317,-799.26,0.00010998,2]
[333350639,1722066645326,-1638.46,0.00010998,2]
[333350640,1722066645335,-799.26,0.00010998,2]
[333350641,1722066645345,-1638.46,0.00010998,2]
[333350642,1722066645354,-799.26,0.00010998,2]
[333350643,1722066645363,-1638.46,0.00010998,2]
[333350644,1722066645372,-799.26,0.00010998,2]
[333350645,1722066645381,-1638.46,0.00010998,2]
[333350646,1722066645392,-799.26,0.00010998,2]
[333350647,1722066645401,-1638.46,0.00010998,2]
[333350648,1722066645411,-799.26,0.00010998,2]
[333350649,1722066645420,-1638.46,0.00010998,2]
[333350650,1722066645430,-799.26,0.00010998,2]
[333350651,1722066645439,-1638.49392958,0.00010998,2]
[333350652,1722066645450,-799.26,0.00010998,2]
[333350653,1722066645460,-799.32430311,0.00010998,2]
[333350654,1722066645471,-1116.29,0.00010998,2]
[333350655,1722066645482,-1116.29,0.00010998,2]
[333350656,1722066645491,-1116.29,0.00010998,2]
[333350657,1722066645500,-1116.29,0.00010998,2]
[333350658,1722066645510,-1116.29,0.00010998,2]
[333350659,1722066645520,-1116.29,0.00010998,2]
[333350660,1722066645530,-1116.29,0.00010998,2]
[333350661,1722066645540,-1116.29,0.00010998,2]
[333350662,1722066645549,-1116.32999732,0.00010998,2]
[333350663,1722066645559,-927.15,0.00010998,2]
[333350664,1722066645571,-927.15,0.00010998,2]
[333350665,1722066645581,-927.15,0.00010998,2]
[333350666,1722066645592,-734.33370002,0.00010998,2]
[333350667,1722066645607,-192.81629998,0.00010998,2]
[333350668,1722066645617,-927.36589212,0.00010998,2]
[333350669,1722066645627,-969.98,0.00010998,2]
[333350670,1722066645638,-969.98,0.00010998,2]
[333350671,1722066645647,-969.98,0.00010998,2]
[333350672,1722066645656,-969.98,0.00010998,2]
[333350673,1722066645665,-969.98,0.00010998,2]
[333350674,1722066645675,-442.88537299,0.00010998,2]
[333350675,1722066645848,-419.04,8.262e-05,2]
[333350676,1722066645859,-14147.73179293,0.00010991,2]
[333350677,1722066645871,-692.45258626,0.00010991,2]
[333350678,1722066645882,-5296.76582824,0.00010991,2]
[333350679,1722066645894,-1006.62630079,0.00010991,2]
[333350680,1722066645907,-352.72799642,0.00010991,2]
[333350681,1722066645920,-10680.68404657,0.00010991,2]
[333350682,1722066645930,-527.09462701,0.00010998,2]
[333350683,1722066645944,-970.21,0.00010998,2]
[333350684,1722066645954,-1717.26,0.00010998,2]
[333350685,1722066645963,-1717.26,0.00010998,2]
[333350686,1722066645973,-1717.26,0.00010998,2]
[333350687,1722066645983,-1717.26,0.00010998,2]
[333350688,1722066645994,-1717.26,0.00010998,2]
[333350689,1722066646003,-1717.26,0.00010998,2]
[333350690,1722066646013,-1717.48632513,0.00010998,2]
[333350691,1722066646023,-1751.85,0.00010998,2]
[333350692,1722066646033,-1751.85,0.00010998,2]
[333350693,1722066646045,-1751.85,0.00010998,2]
[333350694,1722066646055,-1751.85,0.00010998,2]
[333350695,1722066646067,-1751.85,0.00010998,2]
[333350696,1722066646077,-1751.85,0.00010998,2]
[333350697,1722066646087,-1752.00989404,0.00010998,2]
[333350698,1722066646097,-898.96,0.00010998,2]
[333350699,1722066646107,-898.96,0.00010998,2]
[333350700,1722066646117,-898.96,0.00010998,2]
[333350702,1722066646126,-898.96,0.00010998,2]
[333350703,1722066646136,-898.96,0.00010998,2]
[333350704,1722066646145,-898.96,0.00010998,2]
[333350705,1722066646155,-899.07979195,0.00010998,2]
[333350706,1722066646211,-500.0,0.00010998,2]
[333350707,1722066646221,-499.0658001,0.00010998,2]
[333350708,1722066646231,-1000.0,0.00010998,2]
[333350709,1722066646240,-1000.0,0.00010998,2]
[333350710,1722066646250,-1000.0,0.00010998,2]
[333350711,1722066646259,-1000.0,0.00010998,2]
[333350712,1722066646269,-1000.0,0.00010998,2]
[333350713,1722066646279,-1000.0,0.00010998,2]
[333350714,1722066646290,-1000.0,0.00010998,2]
[333350715,1722066646300,-1000.0,0.00010998,2]
[333350716,1722066646310,-1000.0,0.00010998,2]
[333350717,1722066646319,-1000.0,0.00010998,2]